bitfinex/quotes_SOLUSD_20250107
["timestamp","ask_amount","ask_price","bid_price","bid_amount"]
[1736217489994,11.5001,217.39,217.32,32.73374677]
[1736217490196,11.5001,217.39,217.33,8.95686277]
[1736217490370,11.5001,217.39,217.34,8.95686277]
[1736217492200,11.5001,217.39,217.35,8.95686277]
[1736217492814,11.5001,217.39,217.34,8.95686277]
[1736217495117,20.0,217.43,217.35,8.95686277]
[1736217495291,20.0,217.39,217.35,8.95686277]
[1736217497217,8.95686277,217.42,217.35,8.95686277]
[1736217497218,20.0,217.38,217.35,8.95686277]
[1736217498128,20.0,217.38,217.34,8.95686277]
[1736217498633,20.0,217.38,217.34,23.776884]
[1736217499330,31.5006,217.38,217.32,8.95686277]
[1736217500215,31.5006,217.38,217.31,10.60996277]
[1736217500423,31.5006,217.38,217.32,23.776884]
[1736217500731,31.5006,217.38,217.32,32.73374677]
[1736217504738,40.45746277,217.38,217.31,1.6531]
[1736217505016,8.95686277,217.36,217.31,1.6531]
[1736217505423,8.95686277,217.36,217.29,23.776884]
[1736217508830,8.95686277,217.34,217.29,23.776884]
[1736217512405,8.95686277,217.34,217.26,10.59446277]
[1736217512628,8.95686277,217.33,217.26,1.6376]
[1736217513214,8.95686277,217.33,217.27,23.776884]
[1736217513714,8.95686277,217.33,217.26,1.6376]
[1736217513915,8.95686277,217.32,217.23,6.512]
[1736217514130,8.95686277,217.32,217.25,8.95686277]
[1736217514428,11.5027,217.35,217.23,6.512]
[1736217514429,8.95686277,217.31,217.23,6.512]
[1736217514632,8.95686277,217.31,217.23,15.46886277]
[1736217515535,8.95686277,217.31,217.24,23.776884]
[1736217517433,8.95686277,217.29,217.22,8.95686277]
[1736217517637,8.95686277,217.29,217.23,23.776884]
[1736217519032,8.95686277,217.27,217.18,6.633]
[1736217519209,28.95686277,217.26,217.19,8.95686277]
[1736217519627,28.95686277,217.26,217.2,23.776884]
[1736217520539,28.95686277,217.26,217.19,8.95686277]
[1736217521334,20.0,217.26,217.2,8.95686277]
[1736217523915,20.0,217.26,217.21,8.95686277]
[1736217525835,20.0,217.26,217.2,8.95686277]
[1736217528342,20.0,217.26,217.21,8.95686277]
[1736217529034,20.0,217.26,217.22,8.95686277]
[1736217529832,20.0,217.26,217.21,8.95686277]
[1736217534029,20.0,217.26,217.2,8.95686277]
[1736217539352,28.95686277,217.26,217.2,23.776884]
[1736217540963,28.95686277,217.26,217.17,23.776884]
[1736217541164,20.0,217.26,217.2,23.776884]
[1736217541356,28.95686277,217.26,217.2,23.776884]
[1736217541538,20.0,217.26,217.2,23.776884]
[1736217544067,20.0,217.26,217.2,8.95686277]
[1736217545962,20.0,217.26,217.2,23.776884]
[1736217548264,20.0,217.26,217.2,8.95686277]
[1736217549865,11.5054,217.29,217.2,8.95686277]
[1736217550170,8.95686277,217.3,217.22,8.95686277]
[1736217551166,8.95686277,217.29,217.22,23.776884]
[1736217552482,8.95686277,217.27,217.22,23.776884]
[1736217552640,8.95686277,217.25,217.18,8.95686277]
[1736217553650,8.95686277,217.25,217.17,23.776884]
[1736217553851,8.95686277,217.25,217.17,32.73374677]
[1736217554368,8.95686277,217.25,217.18,8.95686277]
[1736217554558,8.95686277,217.26,217.18,8.95686277]
[1736217555661,8.95686277,217.26,217.19,8.95686277]
[1736217558573,8.95686277,217.27,217.2,8.95686277]
[1736217558781,8.95686277,217.27,217.19,8.95686277]
[1736217558956,8.95686277,217.27,217.2,23.776884]
[1736217559161,10.89686277,217.27,217.2,23.776884]
[1736217559673,8.95686277,217.27,217.2,23.776884]
[1736217567180,8.95686277,217.26,217.2,23.776884]
[1736217568281,8.95686277,217.26,217.19,8.95686277]
[1736217568683,8.95686277,217.26,217.17,23.776884]
[1736217568860,8.95686277,217.26,217.19,8.95686277]
[1736217572389,8.95686277,217.26,217.17,23.776884]
[1736217572685,8.95686277,217.26,217.18,8.95686277]
[1736217575569,28.95686277,217.25,217.17,32.73374677]
[1736217575775,8.95686277,217.23,217.16,1.5782]
[1736217575982,8.95686277,217.23,217.16,8.95686277]
[1736217576160,31.508,217.25,217.14,23.776884]
[1736217576367,40.46486277,217.25,217.18,8.95686277]
[1736217578569,20.0,217.24,217.19,8.95686277]
[1736217579075,20.0,217.26,217.19,8.95686277]
[1736217579274,28.95686277,217.26,217.19,8.95686277]
[1736217581199,28.95686277,217.26,217.14,24.46748963]
[1736217581374,28.95686277,217.26,217.18,8.95686277]
[1736217584293,28.95686277,217.26,217.19,8.95686277]
[1736217585793,20.0,217.26,217.19,8.95686277]
[1736217585999,28.95686277,217.26,217.19,8.95686277]
[1736217586911,20.0,217.26,217.22,8.95686277]
[1736217587117,20.0,217.26,217.23,8.95686277]
[1736217587776,20.0,217.27,217.22,8.95686277]
[1736217588102,20.0,217.26,217.22,8.95686277]
[1736217590308,28.95686277,217.28,217.15,1.6071]
[1736217590484,28.95686277,217.28,217.2,8.95686277]
[1736217590991,28.95686277,217.28,217.21,8.95686277]
[1736217592216,28.95686277,217.28,217.2,8.95686277]
[1736217592509,28.95686277,217.28,217.21,8.95686277]
[1736217592674,28.95686277,217.28,217.2,8.95686277]
[1736217592881,28.95686277,217.28,217.21,8.95686277]
[1736217593090,20.0,217.26,217.21,8.95686277]
[1736217593906,20.46426277,217.25,217.15,1.6071]
[1736217594082,20.46426277,217.25,217.17,8.95686277]
[1736217594918,20.46426277,217.25,217.16,23.776884]
[1736217595086,20.46426277,217.25,217.17,8.95686277]
[1736217595485,8.95686277,217.23,217.15,1.6071]
[1736217595716,8.95686277,217.23,217.16,8.95686277]
[1736217596626,8.95686277,217.21,217.1,1.5585]
[1736217596792,8.95686277,217.21,217.13,8.95686277]
[1736217596992,8.95686277,217.21,217.14,8.95686277]
[1736217598090,8.95686277,217.21,217.11,23.776884]
[1736217598285,8.95686277,217.2,217.13,8.95686277]
[1736217598512,8.95686277,217.21,217.14,8.95686277]
[1736217600413,8.95686277,217.22,217.15,8.95686277]
[1736217600621,8.95686277,217.23,217.16,8.95686277]
[1736217603521,28.95686277,217.24,217.16,8.95686277]
[1736217603846,8.95686277,217.23,217.16,8.95686277]
[1736217606479,20.0,217.24,217.17,8.95686277]
[1736217606630,20.0,217.24,217.18,8.95686277]
[1736217606828,28.95686277,217.24,217.17,8.95686277]
[1736217607345,8.95686277,217.23,217.16,8.95686277]
[1736217610560,28.95686277,217.24,217.16,8.95686277]
[1736217612337,28.95686277,217.24,217.17,8.95686277]
[1736217616857,20.0,217.24,217.17,8.95686277]
[1736217618989,20.0,217.24,217.18,23.776884]
[1736217619213,20.0,217.23,217.18,8.95686277]
[1736217620448,8.95686277,217.27,217.2,8.95686277]
[1736217620654,13.21384246,217.29,217.16,2.24283261]
[1736217620655,8.95686277,217.28,217.21,8.95686277]
[1736217620999,16.10960523,217.3,217.23,8.95686277]
[1736217621696,20.0,217.27,217.23,8.95686277]
[1736217622291,20.0,217.27,217.22,8.95686277]
[1736217623655,89.45274246,217.32,217.24,8.95686277]
[1736217624054,20.0,217.29,217.24,8.95686277]
[1736217624255,20.0,217.29,217.23,8.95686277]
[1736217625761,28.95686277,217.31,217.24,8.95686277]
[1736217628699,28.95686277,217.31,217.25,8.95686277]
[1736217629190,7.15274246,217.35,217.28,8.95686277]
[1736217629395,7.15274246,217.35,217.29,8.95686277]
[1736217629566,16.10960523,217.36,217.29,8.95686277]
[1736217629765,20.0,217.33,217.3,8.95686277]
[1736217630865,20.0,217.33,217.29,8.95686277]
[1736217631696,20.0,217.34,217.31,8.95686277]
[1736217631873,20.0,217.34,217.3,8.95686277]
[1736217632863,28.95686277,217.36,217.29,8.95686277]
[1736217635163,20.0,217.34,217.3,8.95686277]
[1736217636700,13.4403,217.39,217.31,8.95686277]
[1736217636864,8.95686277,217.38,217.31,8.95686277]
[1736217637064,20.0,217.35,217.31,8.95686277]
[1736217637793,20.0,217.36,217.32,8.95686277]
[1736217638496,28.95686277,217.38,217.31,8.95686277]
[1736217639506,8.95686277,217.37,217.31,8.95686277]
[1736217639794,8.95686277,217.36,217.29,8.95686277]
[1736217642693,28.95686277,217.37,217.3,8.95686277]
[1736217643666,20.0,217.37,217.3,8.95686277]
[1736217644690,20.0,217.37,217.31,8.95686277]
[1736217647489,20.0,217.37,217.3,8.95686277]
[1736217649804,8.95686277,217.37,217.29,8.95686277]
[1736217650313,20.0,217.35,217.3,8.95686277]
[1736217659194,20.0,217.37,217.3,8.95686277]
[1736217659408,20.0,217.36,217.3,8.95686277]
[1736217667124,13.4396,217.4,217.32,8.95686277]
[1736217667425,20.0,217.37,217.32,8.95686277]
[1736217670618,20.0,217.37,217.33,8.95686277]
[1736217674643,20.0,217.37,217.32,8.95686277]
[1736217680539,27.15274246,217.37,217.32,8.95686277]
[1736217681233,20.0,217.37,217.32,8.95686277]
[1736217687626,27.15274246,217.37,217.32,8.95686277]
[1736217688832,20.0,217.37,217.32,8.95686277]
[1736217695352,20.0,217.37,217.3,10.56376277]
[1736217697638,7.15274246,217.4,217.36,8.95686277]
[1736217698258,20.0,217.39,217.36,8.95686277]
[1736217699048,20.0,217.4,217.36,8.95686277]
[1736217699635,20.0,217.41,217.36,8.95686277]
[1736217702640,20.0,217.4,217.36,8.95686277]
[1736217703662,20.0,217.39,217.3,3.5469]
[1736217703966,20.45586277,217.41,217.33,8.95686277]
[1736217704765,20.45586277,217.41,217.3,3.5469]
[1736217704951,8.95686277,217.37,217.3,1.6069]
[1736217705156,28.95686277,217.36,217.3,1.6069]
[1736217705663,28.95686277,217.36,217.29,137.95686277]
[1736217706165,28.95686277,217.36,217.29,8.95686277]
[1736217707453,28.95686277,217.35,217.28,8.95686277]
[1736217708251,28.95686277,217.35,217.27,15.21156277]
[1736217708437,28.95686277,217.35,217.27,8.95686277]
[1736217709663,28.95686277,217.35,217.28,8.95686277]
[1736217714745,28.95686277,217.35,217.25,1.6037]
[1736217714946,28.95686277,217.35,217.28,8.95686277]
[1736217718274,8.95686277,217.34,217.28,8.95686277]
[1736217723480,28.95686277,217.35,217.28,8.95686277]
[1736217725975,20.0,217.36,217.32,8.95686277]
[1736217726160,20.0,217.35,217.26,23.776884]
[1736217726478,20.0,217.35,217.31,8.95686277]
[1736217727278,20.0,217.35,217.25,37.43115108]
[1736217727586,28.95686277,217.35,217.28,8.95686277]
[1736217731258,20.0,217.35,217.28,8.95686277]
[1736217733379,20.0,217.35,217.26,8.95686277]
[1736217733380,31.5021,217.35,217.26,8.95686277]
[1736217733587,8.95686277,217.33,217.22,6.1035]
[1736217733900,8.95686277,217.32,217.24,8.95686277]
[1736217734184,8.95686277,217.31,217.24,8.95686277]
[1736217734387,31.5021,217.35,217.24,8.95686277]
[1736217734388,8.95686277,217.32,217.24,8.95686277]
[1736217734563,8.95686277,217.32,217.25,8.95686277]
[1736217737194,8.95686277,217.32,217.26,8.95686277]
[1736217739392,8.95686277,217.33,217.26,8.95686277]
[1736217741093,8.95686277,217.32,217.26,8.95686277]
[1736217741298,8.95686277,217.31,217.2,1.5446]
[1736217741517,35.82745108,217.36,217.2,1.5446]
[1736217741518,28.95686277,217.29,217.23,8.95686277]
[1736217742197,20.0,217.29,217.23,8.95686277]
[1736217745086,20.0,217.29,217.24,8.95686277]
[1736217749901,8.95686277,217.31,217.24,8.95686277]
[1736217750804,8.95686277,217.28,217.15,1.538]
[1736217751010,20.0,217.23,217.18,8.95686277]
[1736217751697,8.95686277,217.25,217.18,8.95686277]
[1736217752297,20.0,217.23,217.19,8.95686277]
[1736217752895,20.46386277,217.26,217.19,8.95686277]
[1736217753384,20.0,217.23,217.19,8.95686277]
[1736217754401,20.0,217.23,217.2,8.95686277]
[1736217756597,82.3,217.31,217.21,8.95686277]
[1736217756775,82.3,217.31,217.15,1.538]
[1736217756776,11.505,217.3,217.25,8.95686277]
[1736217757293,20.0,217.27,217.24,8.95686277]
[1736217758707,20.0,217.27,217.23,8.95686277]
[1736217759176,20.0,217.27,217.16,25.716884]
[1736217759380,20.0,217.27,217.21,8.95686277]
[1736217760305,20.0,217.27,217.22,8.95686277]
[1736217760609,20.0,217.27,217.23,8.95686277]
[1736217763391,20.0,217.27,217.22,8.95686277]
[1736217781944,20.0,217.27,217.16,23.776884]
[1736217782125,20.0,217.27,217.21,8.95686277]
[1736217782331,20.0,217.27,217.23,8.95686277]
[1736217783438,20.0,217.27,217.21,10.46736277]
[1736217786946,20.0,217.27,217.23,8.95686277]
[1736217788249,11.505,217.3,217.23,8.95686277]
[1736217788430,11.505,217.3,217.25,8.95686277]
[1736217788747,20.0,217.3,217.26,8.95686277]
[1736217789262,7.15274246,217.33,217.29,8.95686277]
[1736217789465,7.15274246,217.34,217.3,8.95686277]
[1736217789629,7.15274246,217.34,217.31,8.95686277]
[1736217789823,7.15274246,217.34,217.3,8.95686277]
[1736217790330,8.95686277,217.37,217.3,8.95686277]
[1736217791240,8.95686277,217.36,217.29,8.95686277]
[1736217791547,20.0,217.33,217.28,1.5877]
[1736217791737,20.0,217.32,217.28,1.5877]
[1736217793434,20.0,217.32,217.28,10.54456277]
[1736217794251,20.0,217.32,217.29,8.95686277]
[1736217798052,11.5023,217.35,217.29,8.95686277]
[1736217798241,11.5023,217.35,217.3,8.95686277]
[1736217798651,20.0,217.35,217.3,8.95686277]
[1736217800151,20.0,217.36,217.3,8.95686277]
[1736217800373,20.0,217.34,217.3,8.95686277]
[1736217805066,20.0,217.34,217.29,8.95686277]
[1736217807648,20.0,217.34,217.3,8.95686277]
[1736217808266,20.0,217.35,217.31,8.95686277]
[1736217808959,20.0,217.36,217.32,8.95686277]
[1736217817853,20.0,217.36,217.33,8.95686277]
[1736217824284,31.5018,217.36,217.28,1.5877]
[1736217824479,31.5018,217.36,217.3,8.95686277]
[1736217827291,31.5018,217.36,217.32,8.95686277]
[1736217829794,31.5018,217.36,217.29,23.776884]
[1736217829976,31.5018,217.36,217.3,8.95686277]
[1736217840305,31.5018,217.36,217.32,8.95686277]
[1736217841303,31.5018,217.36,217.29,23.776884]
[1736217841304,31.5018,217.36,217.28,1.5877]
[1736217841481,40.45866277,217.36,217.28,10.54456277]
[1736217841678,31.5018,217.36,217.29,8.95686277]
[1736217842908,31.5018,217.36,217.3,8.95686277]
[1736217845018,31.5018,217.36,217.31,8.95686277]
[1736217845985,31.5018,217.36,217.32,8.95686277]
[1736217847687,31.5018,217.36,217.29,23.776884]
[1736217847889,31.5018,217.36,217.31,8.95686277]
[1736217852187,31.5018,217.36,217.29,23.776884]
[1736217852408,31.5018,217.36,217.31,8.95686277]
[1736217852930,31.5018,217.36,217.32,8.95686277]
[1736217859201,31.5018,217.36,217.33,8.95686277]
[1736217865938,31.5018,217.36,217.29,23.776884]
[1736217866118,31.5018,217.36,217.33,8.95686277]
[1736217875823,31.5018,217.36,217.28,1.5877]
[1736217876143,31.5018,217.36,217.33,8.95686277]
[1736217876317,7.15274246,217.39,217.33,8.95686277]
[1736217876520,7.15274246,217.39,217.35,8.95686277]
[1736217876941,7.15274246,217.39,217.37,8.95686277]
[1736217877627,20.0,217.38,217.37,8.95686277]
[1736217881051,7.15274246,217.42,217.37,8.95686277]
[1736217881339,20.0,217.4,217.39,8.95686277]
[1736217881741,7.15274246,217.42,217.39,8.95686277]
[1736217881919,7.15274246,217.42,217.41,8.95686277]
[1736217882844,11.4973,217.45,217.41,8.95686277]
[1736217883147,20.0,217.43,217.42,8.95686277]
[1736217883540,20.0,217.43,217.41,8.95686277]
[1736217883949,20.0,217.43,217.35,1.5892]
[1736217884243,20.0,217.43,217.41,8.95686277]
[1736217884645,20.0,217.43,217.4,8.95686277]
[1736217884827,20.0,217.43,217.39,8.95686277]
[1736217886332,20.0,217.43,217.4,8.95686277]
[1736217892557,20.0,217.43,217.41,8.95686277]
[1736217905964,11.4973,217.45,217.41,8.95686277]
[1736217906173,20.45156277,217.49,217.41,8.95686277]
[1736217906676,20.0,217.46,217.41,8.95686277]
[1736217906841,20.0,217.46,217.42,8.95686277]
[1736217913379,20.0,217.46,217.37,6.0881]
[1736217913572,20.0,217.46,217.38,23.776884]
[1736217913770,20.0,217.46,217.42,8.95686277]
[1736217915769,20.0,217.46,217.38,23.776884]
[1736217915976,20.0,217.46,217.43,8.95686277]
[1736217919078,20.0,217.46,217.38,23.776884]
[1736217919261,20.0,217.46,217.43,8.95686277]
[1736217924480,20.0,217.46,217.38,23.776884]
[1736217924677,20.0,217.46,217.43,8.95686277]
[1736217925678,20.0,217.46,217.37,6.0881]
[1736217925885,8.95686277,217.47,217.4,8.95686277]
[1736217926186,11.4964,217.46,217.4,8.95686277]
[1736217927186,20.0,217.43,217.35,1.5892]
[1736217927373,20.0,217.43,217.39,8.95686277]
[1736217928018,20.0,217.43,217.4,8.95686277]
[1736217929386,20.0,217.43,217.35,1.5892]
[1736217929686,20.0,217.43,217.39,8.95686277]
[1736217930483,11.4964,217.46,217.4,8.95686277]
[1736217930789,20.0,217.43,217.4,8.95686277]
[1736217931554,20.0,217.43,217.39,8.95686277]
[1736217932293,20.0,217.43,217.35,1.5892]
[1736217932478,20.0,217.43,217.39,8.95686277]
[1736217935678,20.0,217.43,217.35,1.5892]
[1736217935877,40.45516277,217.43,217.31,6.3067]
[1736217936077,40.45516277,217.43,217.36,8.95686277]
[1736217937976,20.0,217.39,217.34,8.95686277]
[1736217938497,20.0,217.39,217.35,8.95686277]
[1736217939996,20.0,217.39,217.3,1.5568]
[1736217940187,11.4995,217.4,217.34,8.95686277]
[1736217940188,20.0,217.37,217.34,8.95686277]
[1736217940784,20.0,217.37,217.3,1.5568]
[1736217940990,20.0,217.37,217.34,8.95686277]
[1736217942903,20.0,217.37,217.3,1.5568]
[1736217943105,31.5012,217.37,217.32,8.95686277]
[1736217944497,40.45806277,217.37,217.3,8.95686277]
[1736217945298,20.0,217.32,217.28,8.95686277]
[1736217945691,20.0,217.31,217.28,8.95686277]
[1736217946407,20.0,217.32,217.2,1.5292]
[1736217946575,20.0,217.32,217.26,8.95686277]
[1736217946781,20.0,217.31,217.27,8.95686277]
[1736217949424,20.0,217.32,217.28,8.95686277]
[1736217949987,20.0,217.32,217.27,8.95686277]
[1736217949988,20.0,217.31,217.27,8.95686277]
[1736217953608,20.0,217.31,217.28,8.95686277]
[1736217954512,20.0,217.31,217.21,23.776884]
[1736217954715,20.0,217.31,217.28,8.95686277]
[1736217955107,31.5039,217.32,217.28,8.95686277]
[1736217955302,31.5039,217.32,217.3,8.95686277]
[1736217955611,11.5039,217.32,217.3,8.95686277]
[1736217957582,20.0,217.3,217.28,8.95686277]
[1736217957788,11.5039,217.32,217.28,8.95686277]
[1736217958411,20.0,217.3,217.29,8.95686277]
[1736217958614,20.0,217.3,217.28,8.95686277]
[1736217961915,20.0,217.29,217.27,8.95686277]
[1736217962126,11.5053,217.29,217.27,8.95686277]
[1736217963500,11.5053,217.29,217.2,1.5292]
[1736217963691,20.0,217.29,217.25,8.95686277]
[1736217965400,11.5058,217.28,217.25,8.95686277]
[1736217966322,11.5058,217.28,217.26,8.95686277]
[1736217967495,11.5037,217.32,217.26,8.95686277]
[1736217968500,11.5037,217.32,217.27,8.95686277]
[1736217968706,20.0,217.29,217.28,8.95686277]
[1736217969927,20.0,217.29,217.27,8.95686277]
[1736217970130,20.0,217.29,217.26,8.95686277]
[1736217971322,20.0,217.29,217.27,8.95686277]
[1736217972637,11.5037,217.32,217.28,8.95686277]
[1736217972806,11.5019,217.36,217.31,8.95686277]
[1736217973133,1.6039,217.4,217.25,35.82745108]
[1736217973134,18.426,217.38,217.35,8.95686277]
[1736217973318,18.426,217.38,217.37,8.95686277]
[1736217973510,20.0,217.37,217.36,8.95686277]
[1736217973828,13.4397,217.4,217.36,8.95686277]
[1736217974206,20.0,217.37,217.36,8.95686277]
[1736217979229,20.0,217.37,217.35,8.95686277]
[1736217984334,13.4397,217.4,217.36,8.95686277]
[1736217984744,20.0,217.38,217.37,8.95686277]
[1736217987730,20.0,217.38,217.36,8.95686277]
[1736217990157,11.4997,217.4,217.36,8.95686277]
[1736217992336,11.4997,217.4,217.37,8.95686277]
[1736217992655,11.4997,217.4,217.38,8.95686277]
[1736217994345,20.0,217.41,217.38,8.95686277]
[1736217995337,20.0,217.41,217.39,8.95686277]
[1736217996247,11.4974,217.44,217.4,8.95686277]
[1736217996653,20.0,217.43,217.42,8.95686277]
[1736217996835,7.15274246,217.45,217.42,8.95686277]
[1736217997032,40.10666986,217.48,217.44,8.95686277]
[1736217997033,11.4957,217.48,217.44,8.95686277]
[1736217997240,11.4957,217.48,217.45,8.95686277]
[1736217997441,11.4957,217.48,217.46,8.95686277]
[1736217997849,11.4931,217.52,217.46,8.95686277]
[1736217998051,20.0,217.49,217.46,8.95686277]
[1736218000263,20.0,217.49,217.44,8.95686277]
[1736218005057,20.0,217.49,217.45,8.95686277]
[1736218008365,20.0,217.49,217.44,8.95686277]
[1736218009269,20.44996277,217.52,217.44,8.95686277]
[1736218016879,20.44996277,217.52,217.45,8.95686277]
[1736218024881,11.4931,217.52,217.46,8.95686277]
[1736218025078,11.4931,217.52,217.47,8.95686277]
[1736218027495,11.4931,217.52,217.42,23.776884]
[1736218027667,11.4931,217.52,217.45,8.95686277]
[1736218028600,8.95686277,217.48,217.41,1.5898]
[1736218028773,8.95686277,217.44,217.36,6.4786]
[1736218028979,20.0,217.47,217.36,6.4786]
[1736218029190,8.95686277,217.43,217.36,6.4786]
[1736218029389,8.95686277,217.43,217.36,15.43546277]
[1736218030901,28.95686277,217.41,217.35,1.5478]
[1736218031074,8.95686277,217.39,217.32,8.95686277]
[1736218031907,11.4978,217.44,217.31,6.186]
[1736218031908,8.95686277,217.37,217.31,15.14286277]
[1736218032111,8.95686277,217.37,217.3,10.51166277]
[1736218032271,8.95686277,217.35,217.3,1.5548]
[1736218032909,8.95686277,217.36,217.3,1.5548]
[1736218033073,28.95686277,217.35,217.3,1.5548]
[1736218033474,8.95686277,217.34,217.3,1.5548]
[1736218035312,28.95686277,217.35,217.3,1.5548]
[1736218041334,8.95686277,217.35,217.3,1.5548]
[1736218041835,28.95686277,217.35,217.3,1.5548]
[1736218045650,8.95686277,217.34,217.3,1.5548]
[1736218045828,28.95686277,217.35,217.3,1.5548]
[1736218046458,8.95686277,217.34,217.3,1.5548]
[1736218047352,20.0,217.35,217.3,1.5548]
[1736218050252,8.95686277,217.34,217.3,1.5548]
[1736218051661,20.46096277,217.32,217.26,6.4314]
[1736218051829,8.95686277,217.3,217.24,1.5131]
[1736218052040,8.95686277,217.29,217.24,1.5131]
[1736218052365,8.95686277,217.28,217.24,1.5131]
[1736218053032,8.95686277,217.29,217.24,1.5131]
[1736218053524,8.95686277,217.3,217.24,1.5131]
[1736218054431,8.95686277,217.31,217.24,1.5131]
[1736218054634,20.46096277,217.32,217.24,10.46996277]
[1736218060665,30.695,217.39,217.26,8.95686277]
[1736218060966,30.695,217.39,217.27,8.95686277]
[1736218060967,8.95686277,217.35,217.27,8.95686277]
[1736218061136,8.95686277,217.34,217.27,8.95686277]
[1736218061337,8.95686277,217.35,217.28,8.95686277]
[1736218062167,8.95686277,217.35,217.25,23.776884]
[1736218062369,8.95686277,217.34,217.25,23.776884]
[1736218062560,8.95686277,217.34,217.27,8.95686277]
[1736218064352,28.95686277,217.33,217.26,8.95686277]
[1736218065764,8.95686277,217.32,217.25,32.73374677]
[1736218067754,28.95686277,217.33,217.26,8.95686277]
[1736218071972,40.46006277,217.33,217.24,1.5131]
[1736218072150,8.95686277,217.31,217.24,1.5131]
[1736218072875,8.95686277,217.29,217.24,1.5131]
[1736218073177,54.5096,217.33,217.24,1.5131]
[1736218073178,8.95686277,217.27,217.24,1.5131]
[1736218073468,8.95686277,217.28,217.24,1.5131]
[1736218075784,8.95686277,217.27,217.24,1.5131]
[1736218080310,28.95686277,217.26,217.21,6.5749]
[1736218081412,8.95686277,217.25,217.21,6.5749]
[1736218081718,20.0,217.26,217.19,1.6106]
[1736218081719,8.95686277,217.23,217.19,1.6106]
[1736218082411,20.0,217.26,217.19,1.6106]
[1736218082412,8.95686277,217.22,217.19,1.6106]
[1736218082712,8.95686277,217.23,217.19,1.6106]
[1736218083290,1.94,217.28,217.22,8.95686277]
[1736218083291,11.5062,217.28,217.22,8.95686277]
[1736218083523,7.16451076,217.3,217.24,8.95686277]
[1736218084014,20.0,217.28,217.2,30.299684]
[1736218084521,20.0,217.28,217.23,8.95686277]
[1736218085095,8.95686277,217.28,217.21,8.95686277]
[1736218085825,28.95686277,217.29,217.22,8.95686277]
[1736218086493,28.95686277,217.29,217.2,30.299684]
[1736218086817,8.95686277,217.28,217.21,8.95686277]
[1736218088326,8.95686277,217.28,217.2,30.299684]
[1736218088523,8.95686277,217.28,217.21,8.95686277]
[1736218088725,40.46226277,217.29,217.22,8.95686277]
[1736218089527,8.95686277,217.28,217.21,8.95686277]
[1736218089723,40.46226277,217.29,217.21,8.95686277]
[1736218092235,20.0,217.24,217.2,15.47966277]
[1736218092406,20.0,217.24,217.2,6.5228]
[1736218093307,20.0,217.24,217.2,15.47966277]
[1736218093508,20.46326277,217.27,217.2,15.47966277]
[1736218093915,8.95686277,217.28,217.21,32.73374677]
[1736218096039,20.0,217.26,217.21,32.73374677]
[1736218096930,11.5043,217.31,217.25,8.95686277]
[1736218097434,20.0,217.28,217.21,23.776884]
[1736218097731,20.0,217.28,217.24,8.95686277]
[1736218099507,20.0,217.28,217.25,8.95686277]
[1736218101438,11.5043,217.31,217.25,8.95686277]
[1736218101738,11.5043,217.31,217.21,23.776884]
[1736218101739,10.89686277,217.34,217.27,8.95686277]
[1736218102839,20.46006277,217.33,217.26,1.5753]
[1736218103141,20.46006277,217.33,217.26,25.352184]
[1736218103635,20.46006277,217.33,217.27,23.776884]
[1736218104511,8.95686277,217.32,217.27,23.776884]
[1736218105117,20.46006277,217.33,217.27,23.776884]
[1736218105315,20.46006277,217.33,217.26,10.53216277]
[1736218105518,20.46006277,217.33,217.27,23.776884]
[1736218107025,11.5032,217.33,217.27,23.776884]
[1736218108649,20.46006277,217.33,217.27,23.776884]
[1736218109346,8.95686277,217.32,217.27,23.776884]
[1736218119533,8.95686277,217.32,217.21,23.776884]
[1736218119734,8.95686277,217.32,217.25,23.776884]
[1736218121258,11.5032,217.33,217.25,23.776884]
[1736218121459,7.16451076,217.36,217.32,8.95686277]
[1736218121642,7.16451076,217.36,217.33,23.776884]
[1736218121938,7.16451076,217.36,217.33,32.73374677]
[1736218122632,27.62077353,217.41,217.33,32.73374677]
[1736218123057,20.45626277,217.41,217.33,32.73374677]
[1736218123270,8.95686277,217.4,217.33,32.73374677]
[1736218123460,11.4994,217.41,217.35,23.776884]
[1736218123461,20.45626277,217.41,217.35,23.776884]